fUSD/lending_fUSD_20251225
["ID","MTS","AMOUNT","RATE_DAILY","PERIOD"]
[399809343,1766689852834,-1664.65,0.00016999,2]
[399809344,1766689852844,-1664.65,0.00016999,2]
[399809345,1766689852854,-1664.65,0.00016999,2]
[399809346,1766689852864,-1664.65,0.00016999,2]
[399809347,1766689852874,-1664.65,0.00016999,2]
[399809348,1766689852884,-1664.65,0.00016999,2]
[399809349,1766689852894,-1664.65,0.00016999,2]
[399809350,1766689852904,-1664.65,0.00016999,2]
[399809351,1766689852914,-1664.65,0.00016999,2]
[399809352,1766689852924,-1664.65,0.00016999,2]
[399809353,1766689852934,-1664.65,0.00016999,2]
[399809354,1766689852944,-1664.65,0.00016999,2]
[399809355,1766689852954,-1664.65,0.00016999,2]
[399809356,1766689852964,-1664.65,0.00016999,2]
[399809357,1766689852975,-1664.65,0.00016999,2]
[399809358,1766689852985,-1664.73545808,0.00016999,2]
[399809359,1766689852995,-13940.5578089,0.00016999,2]
[399809360,1766689853007,-5061418.45756755,0.00017,2]
[399809361,1766689854111,-1939.62105298,0.00016586,2]
[399809362,1766689854151,-151.0,0.00015136,2]
[399809363,1766689854162,-202.74500003,0.00016586,2]
[399809364,1766689854180,-4391.63394699,0.00016586,2]
[399809365,1766689854190,-9769.72088577,0.00017,2]
[399809366,1766689854203,-681.27642147,0.00017,2]
[399809367,1766689854317,-1910.89473278,0.00017,2]
[399809368,1766689854345,-330.28996395,0.00017,2]
[399809369,1766689854358,-533.77400246,0.00017,2]
[399809370,1766689854913,-1000.0,0.0001316,2]
[399809371,1766689854923,-5207.06459416,0.00017,2]
[399809372,1766689854935,-1292.52388058,0.00017,2]
[399809373,1766689854947,-892.50947183,0.00017,2]
[399809374,1766689854969,-7181.94319293,0.00017,2]
[399809375,1766689854981,-301.107492,0.00017,2]
[399809376,1766689854999,-4106.00461,0.00017,2]
[399809377,1766689855011,-3919.033166,0.00017,2]
[399809378,1766689885992,500.0,0.000119,2]
[399809383,1766690103989,500.0,0.000119,2]
[399809420,1766690229996,233.0,0.00032,120]
[399809422,1766690348970,600.0,0.00032,120]
[399809423,1766690350670,600.0,0.00032274,120]
[399809424,1766690351842,600.0,0.00032548,120]
[399809425,1766690353172,600.0,0.00032822,120]
[399809500,1766690480530,459.19,0.0003287,120]
[399809512,1766690504407,534.76167916,0.0003287,120]
[399809513,1766690506464,234.0,0.0003287,120]
[399809514,1766690507240,453.0,0.0003287,120]
[399809515,1766690508028,327.0,0.0003287,120]
[399809516,1766690508820,282.0,0.0003287,120]
[399809517,1766690509598,474.0,0.0003287,120]
[399809518,1766690510390,410.0,0.0003287,120]
[399809519,1766690511413,497.0,0.0003287,120]
[399809521,1766690511977,363.0,0.0003287,120]
[399809524,1766690512783,223.0,0.0003287,120]
[399809525,1766690513721,189.0,0.0003287,120]
[399809527,1766690514334,390.0,0.0003287,120]
[399809529,1766690515105,153.0,0.0003287,120]
[399809548,1766690545666,233.0,0.00032,120]
[399809556,1766690558990,1000.0,0.00032876,120]
[399809560,1766690564241,455.0,0.0003287,120]
[399809562,1766690565010,158.0,0.0003287,120]
[399809564,1766690565786,247.0,0.0003287,120]
[399809565,1766690566781,260.0,0.0003287,120]
[399809609,1766690617331,-175.22264045,0.00012601,2]
[399809611,1766690619577,-6.74719155,0.00012601,2]
[399809612,1766690619613,-252.25280845,0.00012701,2]
[399809615,1766690621633,287.0,0.0003287,120]
[399809618,1766690622417,456.51397778,0.0003287,120]
[399809697,1766690733482,300.15582378,0.00023,120]
[399809731,1766690756243,160.0,0.00032877,120]
[399809740,1766690772768,164.57901463,0.0003013,120]
[399809745,1766690779913,185.0,0.00032877,120]
[399809761,1766690815060,413.52,0.00032876,120]
[399809764,1766690820117,195.5668555,0.0003013,120]
[399809783,1766690860887,183.78113358,0.000328,120]
[399809805,1766690902863,-157.07000795,0.000127,2]
[399809818,1766690919141,191.89356113,0.00031,120]
[399809852,1766691010587,7994.6,0.00032877,120]
[399809865,1766691032040,-1293.52540305,0.000127,2]
[399809866,1766691032053,-254.0,0.000127,2]
[399809867,1766691032063,-195.0,0.00012701,2]
[399809868,1766691032074,-2894.96919155,0.00012701,2]
[399809870,1766691032085,-200.82,0.00012701,2]
[399809871,1766691032095,-195.0,0.0001273,2]
[399809872,1766691032105,-362.04957226,0.00012756,2]
[399809873,1766691032115,-1200.0,0.00012759,2]
[399809874,1766691032125,-1512.9861016,0.0001276,2]
[399809875,1766691032142,-388.29480477,0.0001276,2]
[399809876,1766691032153,-9797.0,0.0001276,2]
[399809877,1766691032165,-600.11131002,0.0001276,2]
[399809878,1766691032177,-4400.0939247,0.0001276,2]
[399809879,1766691032222,-500.0,0.0001276,2]
[399809880,1766691032233,-702.53762416,0.0001276,2]
[399809881,1766691032245,-328.0184482,0.0001276,2]
[399809883,1766691032395,-1119.94014192,0.0001276,2]
[399809886,1766691032407,-23576.0,0.0001276,2]
[399809890,1766691032452,-1472.73296337,0.0001276,2]
[399809917,1766691038082,-111347.5967216,0.0001276,2]
[399809918,1766691038094,-984.039998,0.0001276,2]
[399809919,1766691038138,-302.64238328,0.0001276,2]
[399809920,1766691038151,-2560.5904227,0.0001276,2]
[399809921,1766691038193,-389.43608,0.0001276,2]
[399809930,1766691040085,-66270.30777562,0.0001276,2]
[399809931,1766691040097,-382.58740799,0.0001276,2]
[399809932,1766691040349,-773365.08389207,0.0001276,2]
[399809933,1766691040358,-1200.0,0.00012856,2]
[399809934,1766691040367,-304.31974472,0.0001286,2]
[399809935,1766691040377,-36677.4787,0.0001286,2]
[399809936,1766691040386,-2500.0,0.0001286,2]
[399809937,1766691040395,-150.99,0.00012952,2]
[399809938,1766691040404,-151.0,0.00012952,2]
[399809939,1766691040414,-151.0,0.00012952,2]
[399809940,1766691040427,-151.0,0.00012952,2]
[399809941,1766691040436,-151.0,0.00012952,2]
[399809942,1766691040446,-151.0,0.00012952,2]
[399809943,1766691040456,-151.0,0.00012952,2]
[399809945,1766691040466,-151.0,0.00012952,2]
[399809946,1766691040475,-151.0,0.00012952,2]
[399809947,1766691040485,-151.0,0.00012952,2]
[399809948,1766691040495,-207.4,0.00012952,2]
[399809949,1766691040505,-151.0,0.00012952,2]
[399809950,1766691040515,-151.0,0.00012952,2]
[399809951,1766691040524,-150.0,0.00012959,2]
[399809952,1766691040533,-189.60421217,0.00012959,2]
[399809953,1766691040543,-1000.0,0.0001296,2]
[399809954,1766691040552,-9999.99,0.0001296,2]
[399809955,1766691040562,-1454.3177,0.0001316,2]
[399809956,1766691040572,-362.04957225,0.00013348,2]
[399809957,1766691040581,-304.31974468,0.00013533,2]
[399809958,1766691040591,-1600.0,0.00013664,2]
[399809959,1766691040600,-500.0,0.00013698,2]
[399809960,1766691040609,-500.0,0.00013698,2]
[399809961,1766691040619,-500.0,0.00013698,2]
[399809962,1766691040628,-500.0,0.00013698,2]
[399809963,1766691040637,-183.93452706,0.00013698,2]
[399809964,1766691040647,-435.0169277,0.00013698,2]
[399809965,1766691040656,-500.0,0.00013698,2]
[399809966,1766691040665,-500.0,0.00013698,2]
[399809967,1766691040675,-500.0,0.00013698,2]
[399809968,1766691040685,-500.0,0.00013698,2]
[399809969,1766691040696,-534.14774107,0.00013698,2]
[399809970,1766691040706,-1317.85,0.00013698,2]
[399809971,1766691040715,-1317.85,0.00013698,2]
[399809972,1766691040725,-1317.85,0.00013698,2]
[399809973,1766691040734,-1317.85,0.00013698,2]
[399809974,1766691040744,-4825.48,0.00013707,2]
[399809975,1766691040754,-362.04957225,0.0001394,2]
[399809976,1766691040764,-195.0,0.0001397,2]
[399809977,1766691040774,-195.0,0.0001397,2]
[399809978,1766691040783,-600.0,0.0001397,2]
[399809979,1766691040792,-600.0,0.0001397,2]
[399809980,1766691040802,-195.0,0.0001397,2]
[399809981,1766691040811,-2261.59,0.00014074,2]
[399809982,1766691040820,-304.31974468,0.00014207,2]
[399809983,1766691040830,-304.31974468,0.0001488,2]
[399809984,1766691040840,-43163.47,0.0001519,2]
[399809985,1766691040849,-151.0,0.00015247,2]
[399809986,1766691040858,-151.0,0.00015261,2]
[399809987,1766691040868,-151.0,0.00015268,2]
[399809988,1766691040878,-150.0,0.00015288,2]
[399809989,1766691040887,-150.0,0.00015288,2]
[399809990,1766691040897,-150.0,0.00015288,2]
[399809991,1766691040907,-150.0,0.00015288,2]
[399809992,1766691040916,-217.62219692,0.00015288,2]
[399809993,1766691040926,-150.0,0.00015288,2]
[399809994,1766691040936,-150.0,0.00015288,2]
[399809995,1766691040945,-150.0,0.00015288,2]
[399809996,1766691040955,-150.0,0.00015288,2]
[399809997,1766691040964,-150.0,0.00015288,2]
[399809998,1766691040974,-150.0,0.00015288,2]
[399809999,1766691040984,-150.0,0.00015288,2]
[399810000,1766691040993,-150.0,0.00015288,2]
[399810001,1766691041003,-150.0,0.00015288,2]
[399810002,1766691041012,-150.0,0.00015288,2]
[399810003,1766691041022,-151.0,0.00015291,2]
[399810004,1766691041032,-150.0,0.0001531,2]
[399810005,1766691041041,-150.0,0.00015318,2]
[399810006,1766691041051,-150.0,0.0001532,2]
[399810007,1766691041061,-150.0,0.00015332,2]
[399810008,1766691041070,-150.0,0.00015332,2]
[399810009,1766691041080,-150.0,0.00015335,2]
[399810010,1766691041090,-150.0,0.00015344,2]
[399810011,1766691041099,-150.0,0.00015348,2]
[399810012,1766691041109,-150.0,0.00015353,2]
[399810013,1766691041119,-150.0,0.00015354,2]
[399810014,1766691041129,-150.0,0.00015365,2]
[399810016,1766691041138,-1600.0,0.00015372,2]
[399810017,1766691041147,-150.0,0.00015376,2]
[399810018,1766691041156,-150.0,0.00015377,2]
[399810019,1766691041166,-150.0,0.00015379,2]
[399810020,1766691041176,-150.0,0.00015382,2]
[399810021,1766691041186,-150.0,0.00015386,2]
[399810022,1766691041195,-150.0,0.00015398,2]
[399810023,1766691041205,-150.0,0.00015401,2]
[399810024,1766691041214,-150.0,0.00015401,2]
[399810025,1766691041224,-150.0,0.00015409,2]
[399810026,1766691041234,-150.0,0.00015418,2]
[399810027,1766691041244,-150.0,0.0001542,2]
[399810028,1766691041254,-150.0,0.00015422,2]
[399810029,1766691041263,-150.0,0.00015429,2]
[399810030,1766691041273,-150.0,0.00015429,2]
[399810031,1766691041282,-150.0,0.00015439,2]
[399810032,1766691041291,-150.0,0.00015442,2]
[399810033,1766691041301,-150.0,0.00015442,2]
[399810034,1766691041315,-150.0,0.00015451,2]
[399810035,1766691041325,-150.0,0.00015458,2]
[399810036,1766691041334,-150.0,0.00015464,2]
[399810037,1766691041344,-150.0,0.00015466,2]
[399810038,1766691041355,-150.0,0.0001547,2]
[399810039,1766691041365,-150.0,0.00015476,2]
[399810040,1766691041375,-150.0,0.00015476,2]
[399810041,1766691041385,-150.0,0.00015484,2]
[399810042,1766691041395,-150.0,0.00015486,2]
[399810043,1766691041405,-150.0,0.000155,2]
[399810044,1766691041414,-150.0,0.00015508,2]
[399810045,1766691041428,-150.0,0.00015511,2]
[399810046,1766691041439,-150.0,0.00015514,2]
[399810047,1766691041449,-150.0,0.00015514,2]
[399810048,1766691041459,-150.0,0.00015516,2]
[399810049,1766691041469,-150.0,0.00015519,2]
[399810050,1766691041478,-150.0,0.00015524,2]
[399810051,1766691041488,-150.0,0.0001553,2]
[399810052,1766691041499,-150.0,0.0001553,2]
[399810053,1766691041508,-150.0,0.0001553,2]
[399810054,1766691041518,-150.0,0.00015549,2]
[399810055,1766691041528,-150.0,0.00015552,2]
[399810056,1766691041538,-304.31974468,0.00015553,2]
[399810057,1766691041548,-150.0,0.00015556,2]
[399810058,1766691041557,-150.0,0.00015561,2]
[399810059,1766691041568,-150.0,0.00015571,2]
[399810060,1766691041577,-150.0,0.00015571,2]
[399810061,1766691041587,-150.0,0.00015571,2]
[399810062,1766691041596,-150.0,0.00015574,2]
[399810063,1766691041606,-150.0,0.00015582,2]
[399810064,1766691041615,-150.0,0.00015591,2]
[399810065,1766691041624,-150.0,0.00015597,2]
[399810066,1766691041635,-150.0,0.00015597,2]
[399810067,1766691041646,-150.0,0.00015601,2]
[399810068,1766691041656,-150.0,0.00015614,2]
[399810069,1766691041666,-150.0,0.00015618,2]
[399810070,1766691041676,-150.0,0.00015619,2]
[399810071,1766691041686,-150.0,0.00015621,2]
[399810072,1766691041701,-150.0,0.00015627,2]
[399810073,1766691041711,-150.0,0.00015627,2]
[399810074,1766691041720,-150.0,0.00015627,2]
[399810075,1766691041730,-150.0,0.00015641,2]
[399810076,1766691041740,-150.0,0.00015645,2]
[399810077,1766691041750,-150.0,0.00015647,2]
[399810078,1766691041759,-150.0,0.00015652,2]
[399810079,1766691041769,-150.0,0.00015663,2]
[399810080,1766691041779,-150.0,0.00015665,2]
[399810081,1766691041789,-150.0,0.00015665,2]
[399810082,1766691041799,-150.0,0.00015674,2]
[399810083,1766691041809,-150.0,0.0001568,2]
[399810084,1766691041818,-150.0,0.00015682,2]
[399810085,1766691041828,-150.0,0.00015684,2]
[399810086,1766691041838,-150.0,0.00015685,2]
[399810087,1766691041848,-150.0,0.0001569,2]
[399810088,1766691041859,-215.0738,0.00015691,2]
[399810089,1766691041869,-150.0,0.00015707,2]
[399810090,1766691041878,-150.0,0.00015712,2]
[399810091,1766691041888,-150.0,0.00015712,2]
[399810092,1766691041898,-150.0,0.00015712,2]
[399810093,1766691041907,-150.0,0.00015712,2]
[399810094,1766691041917,-150.0,0.00015729,2]
[399810095,1766691041926,-150.0,0.00015735,2]
[399810096,1766691041936,-150.0,0.00015741,2]
[399810097,1766691041946,-150.0,0.00015741,2]
[399810099,1766691041956,-150.0,0.00015743,2]
[399810100,1766691041965,-150.0,0.00015745,2]
[399810101,1766691041974,-150.0,0.00015751,2]
[399810102,1766691041984,-150.0,0.00015751,2]
[399810103,1766691041993,-150.0,0.0001576,2]
[399810104,1766691042003,-150.0,0.00015773,2]
[399810105,1766691042013,-150.0,0.00015773,2]
[399810106,1766691042023,-150.0,0.00015773,2]
[399810107,1766691042033,-150.0,0.00015778,2]
[399810108,1766691042042,-150.0,0.00015779,2]
[399810109,1766691042057,-150.0,0.00015795,2]
[399810110,1766691042068,-3166.8,0.00015797,2]
[399810111,1766691042079,-150.0,0.00015797,2]
[399810112,1766691042089,-150.0,0.00015803,2]
[399810113,1766691042098,-150.0,0.00015807,2]
[399810114,1766691042108,-150.0,0.0001581,2]
[399810115,1766691042118,-150.0,0.00015817,2]
[399810116,1766691042128,-150.0,0.00015824,2]
[399810117,1766691042138,-150.0,0.00015828,2]
[399810118,1766691042148,-150.0,0.00015834,2]
[399810119,1766691042157,-150.0,0.00015839,2]
[399810120,1766691042168,-150.0,0.00015843,2]
[399810121,1766691042178,-150.0,0.00015854,2]
[399810122,1766691042188,-150.0,0.00015854,2]
[399810123,1766691042198,-150.0,0.00015854,2]
[399810124,1766691042208,-150.0,0.00015854,2]
[399810125,1766691042218,-150.0,0.00015854,2]
[399810126,1766691042228,-163.38,0.00015854,2]
[399810127,1766691042238,-150.0,0.00015861,2]
[399810128,1766691042248,-150.0,0.00015863,2]
[399810129,1766691042259,-300.3,0.00015863,2]
[399810130,1766691042269,-170.78,0.00015863,2]
[399810131,1766691042278,-150.0,0.00015863,2]
[399810132,1766691042288,-150.0,0.00015863,2]
[399810133,1766691042298,-1219.58,0.00015863,2]
[399810134,1766691042308,-170.78,0.00015863,2]
[399810135,1766691042319,-150.0,0.00015863,2]
[399810136,1766691042330,-300.0,0.00015863,2]
[399810137,1766691042340,-150.0,0.00015863,2]
[399810138,1766691042350,-170.78,0.00015863,2]
[399810139,1766691042361,-150.0,0.00015863,2]
[399810140,1766691042371,-150.0,0.00015864,2]
[399810141,1766691042381,-150.0,0.00015869,2]
[399810142,1766691042391,-150.0,0.00015876,2]
[399810143,1766691042400,-150.0,0.00015883,2]
[399810144,1766691042414,-150.0,0.0001589,2]
[399810145,1766691042428,-1220.37,0.0001589,2]
[399810146,1766691042438,-150.0,0.0001589,2]
[399810147,1766691042448,-1220.37,0.0001589,2]
[399810148,1766691042458,-150.0,0.0001589,2]
[399810149,1766691042468,-150.0,0.00015894,2]
[399810150,1766691042478,-150.0,0.00015901,2]
[399810151,1766691042489,-150.0,0.00015905,2]
[399810152,1766691042499,-150.0,0.00015905,2]
[399810153,1766691042509,-150.0,0.00015908,2]
[399810154,1766691042519,-150.0,0.00015911,2]
[399810155,1766691042529,-150.0,0.00015913,2]
[399810156,1766691042540,-150.0,0.00015925,2]
[399810157,1766691042550,-150.0,0.00015927,2]
[399810158,1766691042560,-150.0,0.00015941,2]
[399810159,1766691042569,-150.0,0.00015948,2]
[399810160,1766691042579,-150.0,0.00015949,2]
[399810161,1766691042589,-150.0,0.00015955,2]
[399810162,1766691042599,-150.0,0.00015958,2]
[399810163,1766691042612,-150.0,0.00015967,2]
[399810164,1766691042623,-150.0,0.00015967,2]
[399810165,1766691042633,-150.0,0.00015967,2]
[399810166,1766691042643,-150.0,0.00015972,2]
[399810167,1766691042653,-150.0,0.00015974,2]
[399810168,1766691042663,-150.0,0.00015983,2]
[399810169,1766691042673,-150.0,0.00015985,2]
[399810170,1766691042683,-1364.59530703,0.0001599,2]
[399810171,1766691042692,-150.0,0.00015994,2]
[399810172,1766691042702,-150.0,0.00015995,2]
[399810173,1766691042713,-150.0,0.00015995,2]
[399810174,1766691042723,-6775.69878296,0.00016,2]
[399810175,1766691042733,-196850.3240351,0.00016,2]
[399810176,1766691042743,-611.79223266,0.00016,2]
[399810177,1766691042752,-146032.01872071,0.00016,4]
[399810178,1766691042762,-150.0,0.00016003,2]
[399810179,1766691042773,-150.0,0.00016006,2]
[399810180,1766691042783,-150.0,0.00016016,2]
[399810181,1766691042793,-150.0,0.00016016,2]
[399810182,1766691042805,-150.0,0.00016016,2]
[399810183,1766691042816,-150.0,0.00016024,2]
[399810184,1766691042826,-150.0,0.00016038,2]
[399810185,1766691042837,-150.0,0.00016039,2]
[399810186,1766691042847,-150.0,0.00016043,2]
[399810187,1766691042857,-150.0,0.00016043,2]
[399810188,1766691042867,-150.0,0.00016046,2]
[399810189,1766691042877,-150.0,0.00016048,2]
[399810190,1766691042887,-150.0,0.0001606,2]
[399810192,1766691042897,-150.0,0.0001606,2]
[399810195,1766691042908,-150.0,0.00016072,2]
[399810196,1766691042918,-150.0,0.00016076,2]
[399810198,1766691042928,-150.0,0.0001608,2]
[399810200,1766691042939,-150.0,0.0001608,2]
[399810201,1766691042949,-150.0,0.00016082,2]
[399810203,1766691042959,-150.0,0.0001609,2]
[399810204,1766691042968,-150.0,0.00016092,2]
[399810205,1766691042978,-150.0,0.00016104,2]
[399810206,1766691042988,-150.0,0.00016104,2]
[399810207,1766691042997,-150.0,0.00016107,2]
[399810208,1766691043007,-163.38,0.00016111,2]
[399810209,1766691043016,-150.0,0.00016126,2]
[399810210,1766691043027,-150.0,0.00016137,2]
[399810211,1766691043037,-150.0,0.00016137,2]
[399810212,1766691043046,-150.0,0.00016137,2]
[399810213,1766691043056,-150.0,0.00016137,2]
[399810214,1766691043065,-150.0,0.00016137,2]
[399810215,1766691043077,-150.0,0.00016137,2]
[399810216,1766691043087,-150.0,0.00016137,2]
[399810217,1766691043097,-150.0,0.00016137,2]
[399810218,1766691043107,-150.0,0.00016148,2]
[399810219,1766691043116,-322.6107,0.00016149,2]
[399810220,1766691043126,-250.0,0.00016149,2]
[399810221,1766691043135,-3610.92924073,0.00016149,2]
[399810222,1766691043146,-574.12855637,0.00016149,2]
[399810223,1766691043155,-250.0,0.00016149,2]
[399810224,1766691043166,-250.0,0.00016149,2]
[399810225,1766691043176,-500.0,0.00016149,2]
[399810226,1766691043202,-250.0,0.00016149,2]
[399810227,1766691043215,-250.0,0.00016149,2]
[399810228,1766691043226,-500.0,0.00016149,2]
[399810229,1766691043236,-500.0,0.00016149,2]
[399810230,1766691043246,-250.0,0.00016149,2]
[399810231,1766691043257,-250.0,0.00016149,2]
[399810232,1766691043267,-500.0,0.00016149,2]
[399810233,1766691043277,-500.0,0.00016149,2]
[399810234,1766691043287,-250.0,0.00016149,2]
[399810235,1766691043297,-250.0,0.00016149,2]
[399810236,1766691043308,-500.0,0.00016149,2]
[399810237,1766691043318,-500.0,0.00016149,2]
[399810238,1766691043328,-250.0,0.00016149,2]
[399810239,1766691043338,-250.0,0.00016149,2]
[399810240,1766691043348,-500.0,0.00016149,2]
[399810241,1766691043359,-500.0,0.00016149,2]
[399810242,1766691043368,-283.18901002,0.00016149,2]
[399810243,1766691043378,-250.0,0.00016149,2]
[399810244,1766691043388,-500.0,0.00016149,2]
[399810245,1766691043398,-500.0,0.00016149,2]
[399810246,1766691043408,-250.0,0.00016149,2]
[399810247,1766691043419,-500.0,0.00016149,2]
[399810248,1766691043430,-500.0,0.00016149,2]
[399810249,1766691043440,-250.0,0.00016149,2]
[399810250,1766691043451,-500.0,0.00016149,2]
[399810251,1766691043463,-500.0,0.00016149,2]
[399810266,1766691043890,-250.0,0.00016149,2]
[399810267,1766691043901,-500.0,0.00016149,2]
[399810268,1766691043911,-500.0,0.00016149,2]
[399810269,1766691043922,-250.0,0.00016149,2]
[399810270,1766691043932,-500.0,0.00016149,2]
[399810271,1766691043942,-500.0,0.00016149,2]
[399810272,1766691043952,-500.0,0.00016149,2]
[399810273,1766691043962,-500.0,0.00016149,2]
[399810274,1766691043972,-500.0,0.00016149,2]
[399810275,1766691043982,-500.0,0.00016149,2]
[399810276,1766691043991,-500.0,0.00016149,2]
[399810277,1766691044001,-151.0,0.00016149,2]
[399810278,1766691044011,-1500.0,0.00016149,2]
[399810279,1766691044021,-1500.0,0.00016149,2]
[399810280,1766691044030,-1500.0,0.00016149,2]
[399810281,1766691044040,-1500.0,0.00016149,2]
[399810282,1766691044050,-1500.0,0.00016149,2]
[399810283,1766691044059,-200.0,0.00016149,2]
[399810284,1766691044068,-1500.0,0.00016149,2]
[399810285,1766691044078,-207.4,0.00016149,2]
[399810286,1766691044088,-250.0,0.00016149,2]
[399810287,1766691044098,-1500.0,0.00016149,2]
[399810288,1766691044110,-215.0738,0.00016149,2]
[399810289,1766691044120,-250.0,0.00016149,2]
[399810290,1766691044130,-223.0315306,0.00016149,2]
[399810291,1766691044139,-1500.0,0.00016149,2]
[399810292,1766691044149,-250.0,0.00016149,2]
[399810293,1766691044158,-231.28369723,0.00016149,2]
[399810294,1766691044168,-1500.0,0.00016149,2]
[399810295,1766691044178,-239.84119403,0.00016149,2]
[399810296,1766691044187,-250.0,0.00016149,2]
[399810297,1766691044197,-1500.0,0.00016149,2]
[399810298,1766691044206,-248.71531821,0.00016149,2]
[399810299,1766691044216,-250.0,0.00016149,2]
[399810300,1766691044225,-1500.0,0.00016149,2]
[399810301,1766691044235,-620.0,0.00016149,2]
[399810302,1766691044245,-257.91778498,0.00016149,2]
[399810303,1766691044256,-250.0,0.00016149,2]
[399810304,1766691044271,-250.0,0.00016149,2]
[399810305,1766691044281,-267.46074303,0.00016149,2]
[399810306,1766691044291,-250.0,0.00016149,2]
[399810307,1766691044300,-277.35679052,0.00016149,2]
[399810308,1766691044310,-250.0,0.00016149,2]
[399810309,1766691044319,-250.0,0.00016149,2]
[399810310,1766691044329,-250.0,0.00016149,2]
[399810311,1766691044338,-578.20924308,0.00016149,2]
[399810312,1766691044348,-150.0,0.00016167,2]
[399810313,1766691044359,-150.0,0.0001617,2]
[399810314,1766691044369,-150.0,0.0001617,2]
[399810315,1766691044379,-150.0,0.00016182,2]
[399810316,1766691044389,-500.0,0.00016183,2]
[399810317,1766691044400,-500.0,0.00016183,2]
[399810318,1766691044410,-500.0,0.00016183,2]
[399810319,1766691044421,-515.54072242,0.00016183,2]
[399810320,1766691044431,-648.46173605,0.00016183,2]
[399810321,1766691044441,-500.0,0.00016183,2]
[399810322,1766691044451,-500.0,0.00016183,2]
[399810323,1766691044461,-500.0,0.00016183,2]
[399810324,1766691044472,-500.0,0.00016183,2]
[399810325,1766691044482,-500.0,0.00016183,2]
[399810326,1766691044492,-160.176,0.00016183,2]
[399810327,1766691044502,-500.0,0.00016183,2]
[399810328,1766691044512,-500.0,0.00016183,2]
[399810329,1766691044521,-500.0,0.00016183,2]
[399810330,1766691044531,-500.0,0.00016183,2]
[399810331,1766691044541,-168.21782,0.00016183,2]
[399810332,1766691044551,-500.0,0.00016183,2]
[399810333,1766691044561,-500.0,0.00016183,2]
[399810334,1766691044571,-500.0,0.00016183,2]
[399810335,1766691044580,-500.0,0.00016183,2]
[399810336,1766691044590,-500.0,0.00016183,2]
[399810337,1766691044600,-500.0,0.00016183,2]
[399810338,1766691044609,-349.16265713,0.00016183,2]
[399810339,1766691044619,-500.0,0.00016183,2]
[399810340,1766691044628,-500.0,0.00016183,2]
[399810341,1766691044637,-500.0,0.00016183,2]
[399810342,1766691044647,-500.0,0.00016183,2]
[399810343,1766691044656,-500.66742167,0.00016183,2]
[399810344,1766691044666,-500.0,0.00016183,2]
[399810345,1766691044675,-500.0,0.00016183,2]
[399810346,1766691044684,-164.92711325,0.00016183,2]
[399810347,1766691044694,-500.0,0.00016183,2]
[399810348,1766691044703,-500.0,0.00016183,2]
[399810349,1766691044713,-500.0,0.00016183,2]
[399810350,1766691044722,-500.0,0.00016183,2]
[399810351,1766691044731,-500.0,0.00016183,2]